bitfinex/quotes_ETHUSD_20250505
["timestamp","ask_amount","ask_price","bid_price","bid_amount"]
[1746407353415,6.29520782,1817.3,1816.9,5.50382788]
[1746407353575,5.50300994,1817.2,1816.8,5.50403399]
[1746407354977,5.50300994,1817.2,1816.8,5.50397191]
[1746407355497,5.50300994,1817.2,1816.8,20.00397191]
[1746407355898,5.50300994,1817.2,1816.8,14.5]
[1746407356100,5.5034049,1817.1,1816.8,14.5]
[1746407356275,0.7515,1817.0,1816.7,10.16247048]
[1746407356480,6.25512323,1817.0,1816.7,4.658]
[1746407357006,6.25509858,1817.0,1816.6,5.50461649]
[1746407357414,6.25509858,1817.0,1816.7,14.5]
[1746407357905,6.25509858,1817.0,1816.5,0.8034]
[1746407357906,5.50431103,1816.8,1816.5,0.8034]
[1746407358340,5.5040567,1816.9,1816.5,0.8034]
[1746407358611,5.50461266,1816.7,1816.4,14.5]
[1746407359408,3.0,1816.8,1816.4,20.00533293]
[1746407359608,3.0,1816.8,1816.4,22.55045622]
[1746407360114,6.30626408,1816.9,1816.4,28.05568994]
[1746407360278,12.22243199,1816.9,1816.4,22.55035701]
[1746407360709,6.71830057,1816.9,1816.4,22.5503011]
[1746407361012,6.71830057,1816.9,1816.4,28.05551079]
[1746407361209,12.22243345,1816.9,1816.4,22.5503011]
[1746407361403,6.71830057,1816.9,1816.4,22.5503011]
[1746407362186,5.50433651,1816.8,1816.4,20.00517781]
[1746407366325,5.50433651,1816.8,1816.5,0.7681]
[1746407366523,5.50433651,1816.8,1816.4,6.27327781]
[1746407366824,5.49811926,1816.8,1816.4,6.27327781]
[1746407367026,5.49811926,1816.8,1816.5,14.5]
[1746407367639,6.71825038,1816.9,1816.5,16.57732778]
[1746407367839,9.21133707,1817.1,1816.7,0.8116]
[1746407368137,9.21133707,1817.1,1816.7,6.31597696]
[1746407368291,14.71488985,1817.1,1816.7,0.8116]
[1746407368492,5.50362473,1817.0,1816.7,1.44322105]
[1746407369122,5.50362473,1817.0,1816.7,0.63162105]
[1746407370323,10.03571406,1817.1,1816.7,0.63162105]
[1746407370526,9.21141406,1817.1,1816.7,20.63608404]
[1746407372229,14.71494422,1817.1,1816.7,20.63608404]
[1746407372630,9.21141406,1817.1,1816.7,20.63608404]
[1746407376141,9.21141406,1817.1,1816.7,15.13162105]
[1746407376436,5.50360478,1817.0,1816.7,15.13162105]
[1746407379055,9.21133529,1817.1,1816.7,20.63598292]
[1746407379259,9.21133529,1817.1,1816.8,2.06359829]
[1746407379546,5.50358279,1817.0,1816.7,20.63598292]
[1746407379750,5.50358279,1817.0,1816.7,15.13162105]
[1746407380351,9.21133529,1817.1,1816.7,20.63608955]
[1746407380744,5.5035986,1817.0,1816.7,14.5]
[1746407380948,9.21133529,1817.1,1816.7,14.5]
[1746407381273,14.71485731,1817.1,1816.7,20.00443604]
[1746407381551,9.21133529,1817.1,1816.7,20.00443604]
[1746407382247,9.21125422,1817.1,1816.7,20.00443604]
[1746407382441,9.21125422,1817.1,1816.8,0.7564]
[1746407383387,3.70794254,1817.1,1816.8,6.26037767]
[1746407383917,3.70794254,1817.1,1817.0,6.32077732]
[1746407386960,3.70794254,1817.1,1817.0,20.82077732]
[1746407387163,3.70794254,1817.1,1817.0,23.45323128]
[1746407387862,3.70794254,1817.1,1817.0,25.72265991]
[1746407388173,4.83670835,1817.6,1817.5,5.50206327]
[1746407388395,4.83670835,1817.6,1817.5,6.8482696]
[1746407390429,4.83670835,1817.6,1817.5,21.3482696]
[1746407391272,6.28397042,1818.0,1817.6,5.5016131]
[1746407392474,5.50067042,1818.0,1817.6,5.5016131]
[1746407392773,5.90792278,1818.0,1817.7,0.55016131]
[1746407393833,3.40725236,1818.0,1817.7,6.0516186]
[1746407394169,3.40725236,1818.0,1817.8,0.7847]
[1746407394540,8.90782278,1818.0,1817.8,0.7847]
[1746407395068,8.90782278,1818.0,1817.7,0.55016131]
[1746407395273,5.50143814,1817.8,1817.5,0.55020633]
[1746407395573,5.50147401,1817.7,1817.5,0.55020633]
[1746407395869,5.50147401,1817.7,1817.5,15.05020633]
[1746407396301,5.5017693,1817.6,1817.4,4.634]
[1746407396462,5.50163095,1817.7,1817.4,4.634]
[1746407396663,5.50163095,1817.7,1817.4,19.134]
[1746407397492,5.50176981,1817.6,1817.4,19.134]
[1746407397692,5.50163069,1817.7,1817.4,19.134]
[1746407398200,5.50177518,1817.6,1817.4,19.134]
[1746407398401,5.50207164,1817.5,1817.2,0.775]
[1746407398784,5.50207164,1817.5,1817.3,14.5]
[1746407399307,5.92391317,1817.5,1817.1,4.634]
[1746407399473,5.50254029,1817.4,1817.1,4.634]
[1746407399805,5.50254029,1817.4,1817.2,14.5]
[1746407400504,5.50266879,1817.3,1817.2,14.5]
[1746407400819,6.3270982,1817.3,1817.1,4.634]
[1746407401317,6.3270982,1817.3,1817.0,17.13245396]
[1746407401717,5.50253272,1817.4,1817.0,17.13245396]
[1746407401900,3.0,1817.4,1817.1,7.21651]
[1746407402226,8.50240959,1817.4,1817.1,2.5180454]
[1746407402372,14.00503204,1817.4,1817.1,0.8048]
[1746407402572,14.00503204,1817.4,1817.0,14.5]
[1746407402573,5.50266879,1817.3,1817.0,14.5]
[1746407403728,5.50250958,1817.4,1817.0,20.00352496]
[1746407403938,8.91166915,1817.5,1817.1,6.2584222]
[1746407404087,5.91166915,1817.5,1817.1,6.2584222]
[1746407404289,5.91166915,1817.5,1817.1,8.88460697]
[1746407405487,5.91166915,1817.5,1817.1,14.38766708]
[1746407405838,0.40953781,1817.5,1817.1,8.88441891]
[1746407406017,0.40953781,1817.5,1817.2,5.50285108]
[1746407406325,5.501939,1817.6,1817.2,5.50285108]
[1746407407097,5.501939,1817.6,1817.2,5.55787494]
[1746407407299,5.501939,1817.6,1817.2,5.50285108]
[1746407407532,5.501939,1817.6,1817.2,20.00285108]
[1746407409145,3.7862,1817.7,1817.3,0.8012]
[1746407409630,9.28780798,1817.7,1817.3,6.30375268]
[1746407412232,5.50103176,1817.9,1817.5,6.28701259]
[1746407412431,3.0,1817.9,1817.5,0.7851]
[1746407412749,0.7669,1817.8,1817.3,5.4191]
[1746407412915,5.502138,1817.5,1817.2,15.2786]
[1746407414651,5.90814637,1817.5,1817.2,15.2786]
[1746407415545,0.40600837,1817.5,1817.2,15.2786]
[1746407415852,5.50238815,1817.4,1817.2,14.5]
[1746407416060,5.50238815,1817.4,1817.1,5.3942]
[1746407416211,5.5026688,1817.3,1817.1,2.07690359]
[1746407416412,5.5026688,1817.3,1816.9,0.7666]
[1746407416654,5.50278491,1817.3,1816.9,0.7666]
[1746407416948,11.00570114,1817.3,1816.9,6.27037438]
[1746407417147,5.50278491,1817.3,1816.9,6.27037438]
[1746407418038,5.50278491,1817.3,1816.9,0.7666]
[1746407418247,5.50278491,1817.3,1816.9,3.30736421]
[1746407418429,5.50278491,1817.3,1816.9,8.81117802]
[1746407420065,5.50382152,1817.0,1816.8,4.637]
[1746407420214,5.50382152,1817.0,1816.7,14.5]
[1746407420537,6.27627182,1816.9,1816.5,10.94632098]
[1746407421063,6.27627182,1816.9,1816.5,25.44632098]
[1746407421265,6.68965014,1816.9,1816.5,25.44632098]
[1746407421468,6.68965014,1816.9,1816.5,28.76843171]
[1746407422969,1.18557832,1816.9,1816.5,23.26351073]
[1746407423149,5.50348039,1817.1,1816.8,0.7592]
[1746407425295,5.50368157,1817.0,1816.7,0.7845]
[1746407425693,5.91509021,1817.0,1816.7,0.7845]
[1746407426431,5.91509021,1817.0,1816.7,2.86341136]
[1746407426632,5.91509021,1817.0,1816.7,2.07891136]
[1746407427578,5.86509021,1817.0,1816.7,2.07891136]
[1746407428481,0.41140864,1817.0,1816.7,2.07891136]
[1746407428683,11.00697112,1817.1,1816.7,7.58337218]
[1746407429285,11.42930981,1817.1,1816.7,7.58337218]
[1746407429609,5.50364779,1817.0,1816.7,2.07891136]
[1746407431902,8.92580718,1817.1,1816.7,7.58333484]
[1746407432104,3.0,1817.1,1816.8,6.15550324]
[1746407432431,0.41306471,1817.2,1816.9,5.50387692]
[1746407432576,0.41306471,1817.2,1816.8,6.94403394]
[1746407432778,5.50286225,1817.3,1816.9,5.50387885]
[1746407433128,5.50298667,1817.2,1816.8,21.44403237]
[1746407433290,5.50298667,1817.2,1816.9,2.14440324]
[1746407433700,8.50285912,1817.3,1816.9,7.64827884]
[1746407434407,17.09473539,1817.4,1817.0,5.55859796]
[1746407434605,3.0,1817.4,1817.1,6.30176119]
[1746407434804,3.0,1817.4,1817.1,7.48227883]
[1746407434975,0.42177485,1817.4,1817.2,5.50292764]
[1746407435182,10.95930162,1817.6,1817.2,5.50292764]
[1746407435882,5.50206779,1817.5,1817.1,7.48207078]
[1746407436092,5.50206779,1817.5,1817.2,0.74820708]
[1746407436297,5.50242744,1817.4,1817.1,1.97901764]
[1746407436716,5.50220991,1817.5,1817.1,7.48228597]
[1746407437921,5.4574,1817.6,1817.1,1.97901764]
[1746407438087,5.4574,1817.6,1817.1,0.7985]
[1746407438287,5.50237548,1817.4,1817.1,0.7985]
[1746407438616,5.92094724,1817.5,1817.1,5.50325618]
[1746407439016,5.50259898,1817.4,1817.0,6.28346605]
[1746407439197,5.50259898,1817.4,1817.1,0.62834661]
[1746407439398,5.50259898,1817.4,1817.0,11.78680765]
[1746407439696,5.50259898,1817.4,1817.0,6.2833416]
[1746407441410,5.50259898,1817.4,1817.0,11.78670048]
[1746407441716,5.50259898,1817.4,1817.0,6.2833416]
[1746407446733,3.41871131,1817.5,1817.0,6.2833416]
[1746407447029,3.41871131,1817.5,1817.1,5.50324844]
[1746407447030,8.92096045,1817.5,1817.1,5.50324844]
[1746407447206,3.41871131,1817.5,1817.2,5.50286166]
[1746407447632,8.92081867,1817.5,1817.1,5.50310664]
[1746407448542,0.41871131,1817.5,1817.0,1.87213416]
[1746407448698,3.0,1817.5,1817.1,5.50304397]
[1746407449602,3.0,1817.5,1817.2,5.50293639]
[1746407450338,3.0,1817.5,1817.1,5.50313908]
[1746407450539,8.50207731,1817.5,1817.1,5.50313908]
[1746407451437,8.92231968,1817.5,1817.1,5.50313908]
[1746407451736,8.92231968,1817.5,1817.2,0.55031391]
[1746407453335,8.92231968,1817.5,1817.2,15.05031391]
[1746407454517,5.50248216,1817.4,1817.2,15.05031391]
[1746407454713,5.50248216,1817.4,1817.2,14.5]
[1746407457133,5.50248216,1817.4,1817.0,6.28336635]
[1746407457520,5.50248216,1817.4,1817.1,5.50327409]
[1746407457831,5.50248216,1817.4,1817.1,20.00327409]
[1746407458136,5.50248216,1817.4,1817.1,14.5]
[1746407458299,5.50248216,1817.4,1817.1,16.57834368]
[1746407460350,6.28667005,1817.3,1817.1,14.5]
[1746407462238,0.7839,1817.3,1817.1,14.5]
[1746407462427,6.28644681,1817.4,1817.0,5.50355962]
[1746407462943,6.28644681,1817.4,1817.0,20.75455962]
[1746407464552,5.92250868,1817.5,1817.1,5.50325584]
[1746407464847,5.92250868,1817.5,1817.2,0.55032558]
[1746407465657,11.4248348,1817.5,1817.2,0.55032558]
[1746407466449,11.4248348,1817.5,1817.2,15.05032558]
[1746407466653,5.5024325,1817.4,1817.2,14.5]
[1746407467329,5.5024325,1817.4,1817.0,6.25441272]
[1746407467531,5.50297946,1817.2,1816.9,12.41129967]
[1746407467730,5.50297946,1817.2,1816.9,14.28036267]
[1746407467929,5.50297946,1817.2,1816.9,28.78036267]
[1746407468538,5.50297946,1817.2,1816.9,23.27649163]
[1746407469021,5.50297946,1817.2,1816.9,21.40742863]
[1746407469921,5.50297946,1817.2,1816.9,19.138]
[1746407472763,6.27520411,1817.3,1816.9,24.64186519]
[1746407473348,0.7725,1817.3,1817.0,5.55857265]
[1746407473541,6.68803435,1817.5,1817.1,5.50310665]
[1746407473731,6.68803435,1817.5,1817.1,6.31570665]
[1746407473932,6.68803435,1817.5,1817.1,7.49761679]
[1746407474163,6.68803435,1817.5,1817.2,14.5]
[1746407475369,5.50239572,1817.4,1817.2,14.5]
[1746407475565,8.92250507,1817.5,1817.2,14.5]
[1746407476762,5.50239445,1817.4,1817.2,14.5]
[1746407477066,5.50239445,1817.4,1817.2,16.14945101]
[1746407477633,5.50266879,1817.3,1817.1,1.99451014]
[1746407477834,5.50266879,1817.3,1816.9,13.23927111]
[1746407479170,5.50266879,1817.3,1816.9,18.74293234]
[1746407480669,5.50254615,1817.4,1817.0,5.50355627]
[1746407481476,11.00515967,1817.4,1817.0,5.50355627]
[1746407481778,11.00515967,1817.4,1817.1,14.5]
[1746407482172,5.50268191,1817.3,1817.1,14.5]
[1746407482954,5.5025601,1817.4,1817.1,14.5]
[1746407484851,11.00518339,1817.4,1817.1,14.5]
[1746407485050,5.50267215,1817.3,1817.1,14.5]
[1746407485251,5.50267215,1817.3,1817.1,2.00035749]
[1746407485451,5.50267215,1817.3,1816.9,13.23927171]
[1746407485652,5.50267215,1817.3,1816.9,18.74293451]
[1746407485985,5.5013249,1817.8,1817.3,6.26882725]
[1746407486281,6.30504264,1817.9,1817.3,10.88087207]
[1746407486463,5.50130684,1817.8,1817.3,18.02173267]
[1746407486663,5.50130684,1817.8,1817.4,5.50228568]
[1746407486884,6.72675923,1817.9,1817.4,25.50445811]
[1746407487059,6.72675923,1817.9,1817.4,20.00217243]
[1746407487564,6.72675923,1817.9,1817.5,5.50205742]
[1746407487770,6.72675923,1817.9,1817.5,8.05248041]
[1746407488160,0.42170968,1817.9,1817.6,6.2977432]
[1746407488361,10.33743759,1818.0,1817.6,6.2977432]
[1746407488859,5.50072924,1818.0,1817.6,6.2977432]
[1746407490281,5.50101067,1817.9,1817.6,15.2961]
[1746407490487,5.50101067,1817.9,1817.6,14.5]
[1746407491498,0.787,1817.8,1817.6,14.5]
[1746407493395,6.28826371,1817.8,1817.6,14.5]
[1746407493557,5.50176809,1817.6,1817.3,5.4081]
[1746407494193,5.50161474,1817.7,1817.3,25.41075577]
[1746407494393,9.28835149,1817.8,1817.3,30.91298777]
[1746407494601,9.28835149,1817.8,1817.3,30.91299899]
[1746407494799,9.28835149,1817.8,1817.3,25.41054318]
[1746407494956,5.50148208,1817.7,1817.3,25.41053831]
[1746407495156,5.50148208,1817.7,1817.3,28.50187339]
[1746407496192,0.787,1817.8,1817.3,28.50187339]
[1746407496193,9.28834805,1817.8,1817.3,28.50187339]
[1746407496405,9.28834805,1817.8,1817.4,5.50230942]
[1746407496698,3.0,1817.8,1817.6,0.793]
[1746407496902,5.50101085,1817.9,1817.6,0.793]
[1746407498159,1.23352702,1818.0,1817.7,5.50145039]
[1746407498359,5.50037503,1818.1,1817.7,5.50145039]
[1746407498904,5.91081351,1818.1,1817.7,5.50145039]
[1746407502199,5.50060035,1818.0,1817.6,21.9743072]
[1746407502375,5.5009063,1817.9,1817.6,15.293]
[1746407502573,5.5007318,1818.0,1817.6,20.79475232]
[1746407504001,3.41043848,1818.1,1817.6,20.79471937]
[1746407504304,5.50081465,1818.0,1817.6,15.293]
[1746407504502,1.65402531,1818.0,1817.6,14.5]
[1746407504700,5.50146578,1817.7,1817.5,0.7708]
[1746407504899,5.50085263,1817.9,1817.5,0.7708]
[1746407505079,5.50098703,1817.9,1817.5,0.7708]
[1746407505302,5.50162009,1817.7,1817.4,2.26942863]
[1746407505614,5.50162009,1817.7,1817.4,7.77177761]
[1746407505615,5.50146948,1817.7,1817.4,7.77177761]
[1746407505781,6.26421319,1817.8,1817.4,5.03488639]
[1746407506104,11.0033661,1817.7,1817.4,2.26942863]
[1746407506321,5.50179726,1817.6,1817.4,2.26942863]
[1746407506498,5.50179726,1817.6,1817.2,5.50276854]
[1746407506499,5.50418317,1816.8,1816.7,3.66727258]
[1746407506701,9.26228317,1816.8,1816.7,3.66727258]
[1746407506910,12.51328211,1816.8,1816.7,3.66727258]
[1746407507385,10.73890886,1816.8,1816.7,3.66727258]
[1746407509910,11.15001911,1816.8,1816.7,3.66727258]
[1746407510408,5.50505629,1816.6,1816.2,5.6315]
[1746407510709,5.50557037,1816.4,1816.2,7.64465]
[1746407510906,5.50569839,1816.3,1816.2,7.64465]
[1746407511086,5.50630471,1816.1,1816.0,9.17608541]
[1746407511312,9.26920471,1816.1,1816.0,9.17608541]
[1746407511503,9.81920471,1816.1,1816.0,9.17608541]
[1746407512099,9.81920471,1816.1,1815.3,18.207]
[1746407512100,5.50812448,1815.5,1815.2,0.4120159]
[1746407512303,5.5079569,1815.6,1815.2,6.69740918]
[1746407512509,5.50837104,1815.5,1815.2,1.1884159]
[1746407513615,5.50788449,1815.6,1815.2,6.69743576]
[1746407514213,5.50788449,1815.6,1815.2,1.1884159]
[1746407514724,5.50788449,1815.6,1815.3,0.10317507]
[1746407515227,5.92331102,1815.6,1815.3,0.10317507]
[1746407515435,5.92342432,1815.6,1815.3,0.10317507]
[1746407515740,5.50695136,1815.9,1815.5,5.50804007]
[1746407515897,5.50675992,1816.0,1815.6,0.11603058]
[1746407516099,5.50646245,1816.1,1815.6,5.62360411]
[1746407516317,5.5067823,1816.0,1815.6,0.11603058]
[1746407516535,5.91310818,1816.0,1815.6,0.11603058]
[1746407516735,5.91310818,1816.0,1815.6,7.14850099]
[1746407516951,0.4063568,1816.0,1815.6,7.14850099]
[1746407517152,3.0,1816.1,1815.6,7.14850099]
[1746407517453,8.50654996,1816.1,1815.6,7.14850099]
[1746407518054,5.50665734,1816.0,1815.6,7.14850099]
[1746407518645,5.50665734,1816.0,1815.6,1.64069704]
[1746407518860,8.50638415,1816.1,1815.6,1.64069704]
[1746407518861,8.5064788,1816.1,1815.6,1.64069704]
[1746407519019,8.5064788,1816.1,1815.6,7.14836792]
[1746407519765,8.92705193,1816.1,1815.6,21.64836792]
[1746407520054,5.5066129,1816.0,1815.6,21.64836792]
[1746407520751,3.42057313,1816.1,1815.6,16.14069704]
[1746407520951,5.50685308,1816.0,1815.6,16.14069704]
[1746407521160,5.50660792,1816.0,1815.6,16.14069704]
[1746407521360,5.50693607,1815.9,1815.6,16.14069704]
[1746407521935,5.50681542,1816.0,1815.6,16.14069704]
[1746407522133,5.50681542,1816.0,1815.6,14.61603058]
[1746407522534,3.42057313,1816.1,1815.7,5.56241393]
[1746407522865,3.42057313,1816.1,1815.8,0.7927]
[1746407523063,3.42057313,1816.1,1815.8,0.90592094]
[1746407523266,5.5068375,1816.0,1815.8,0.11322094]
[1746407523441,5.50691117,1815.9,1815.8,0.11322094]
[1746407523636,5.50691117,1815.9,1815.6,0.8195]
[1746407523637,5.50660792,1816.0,1815.6,0.8195]
[1746407523866,5.50691117,1815.9,1815.8,0.11314702]
[1746407524049,1.10135191,1815.9,1815.6,0.8195]
[1746407524235,5.5070581,1815.9,1815.8,0.11314702]
[1746407524436,5.5070581,1815.9,1815.6,0.8195]
[1746407524638,5.5070581,1815.9,1815.8,0.11314702]
[1746407524860,5.5070581,1815.9,1815.6,0.8195]
[1746407525057,5.5070581,1815.9,1815.8,0.11314702]
[1746407525264,5.5070581,1815.9,1815.6,0.8195]
[1746407525451,3.42057313,1816.1,1815.8,0.11314702]
[1746407525651,5.50691117,1815.9,1815.6,0.8195]
[1746407525836,5.50749464,1815.8,1815.4,5.5752]
[1746407526038,5.50749464,1815.8,1815.4,11.08362463]
[1746407526452,5.50771449,1815.7,1815.4,0.7502]
[1746407526646,5.50785585,1815.6,1815.4,0.7502]
[1746407526866,5.50785585,1815.6,1815.3,7.09542863]
[1746407527242,5.50771449,1815.7,1815.3,2.26942863]
[1746407527243,5.5075579,1815.7,1815.3,2.26942863]
[1746407527571,6.60905072,1815.7,1815.3,2.26942863]
[1746407527760,5.50788803,1815.6,1815.3,2.26942863]
[1746407527962,6.60917756,1815.7,1815.3,2.26942863]
[1746407528363,5.50783107,1815.6,1815.3,2.26942863]
[1746407529579,6.60904507,1815.7,1815.3,2.26942863]
[1746407529753,6.60904507,1815.7,1815.3,7.77813727]
[1746407530268,6.60904507,1815.7,1815.3,2.26942863]
[1746407530878,0.61626236,1815.6,1815.3,7.77804183]
[1746407531063,12.11696663,1815.7,1815.3,2.26942863]
[1746407531376,6.60919019,1815.7,1815.3,2.26942863]
[1746407531544,6.60919019,1815.7,1815.3,5.50870028]
[1746407532175,5.50785318,1815.6,1815.2,6.6914684]
[1746407532375,6.60919259,1815.7,1815.2,12.20027899]
[1746407532597,6.60919259,1815.7,1815.3,5.50871057]
[1746407532884,9.16894274,1815.6,1815.2,6.6915066]
[1746407533088,0.8223,1815.5,1815.2,0.4120159]
[1746407533288,5.50873133,1815.3,1815.2,0.4120159]
[1746407533444,11.01739499,1815.4,1815.2,0.4120159]
[1746407533641,1.1017395,1815.3,1815.2,0.4120159]
[1746407533877,5.50873133,1815.3,1815.2,0.4120159]
[1746407534065,8.50873133,1815.3,1815.2,0.4120159]
[1746407534465,3.0,1815.3,1815.2,0.4120159]
[1746407534665,3.0,1815.3,1815.2,0.51726384]
[1746407534882,8.50873133,1815.3,1815.2,0.51726384]
[1746407535082,9.91046431,1815.3,1815.2,0.51726384]
[1746407535872,4.40173298,1815.3,1815.2,0.51726384]
[1746407536567,3.0,1815.3,1815.0,5.50960881]
[1746407536767,3.0,1815.3,1814.9,6.36175758]
[1746407536975,8.91377177,1815.3,1814.9,6.30658627]
[1746407538288,8.91377177,1815.3,1814.9,0.7969]
[1746407538461,10.35600238,1815.3,1814.9,6.30673938]
[1746407539385,5.50904826,1815.2,1814.9,0.7969]
[1746407539681,5.50904826,1815.2,1814.7,6.26712605]
[1746407539682,6.315498,1815.1,1814.7,6.26712605]
[1746407539991,5.50917237,1815.2,1814.7,6.26712605]
[1746407539992,5.50917237,1815.2,1814.8,5.51024201]
[1746407540181,8.50903481,1815.2,1814.7,6.26703933]
[1746407540391,10.26118507,1815.2,1814.7,6.26703933]
[1746407540597,5.50933906,1815.1,1814.7,6.26703933]
[1746407541798,7.26143405,1815.2,1814.7,6.26703933]
[1746407542162,7.26143405,1815.2,1814.8,5.51015514]
[1746407542364,0.72614341,1815.1,1814.8,5.51015514]
[1746407542672,6.23549282,1815.1,1814.7,6.26709983]
[1746407542891,6.23549282,1815.1,1814.7,11.77741037]
[1746407543391,6.23550192,1815.1,1814.7,6.26708136]
[1746407543784,6.23550192,1815.1,1814.7,6.26702736]
[1746407544796,6.23549897,1815.1,1814.7,6.26702736]
[1746407545795,6.23549897,1815.1,1814.7,11.77735035]
[1746407546421,6.23549897,1815.1,1814.7,11.77733646]
[1746407546725,4.21101789,1815.3,1814.8,5.5102263]
[1746407547014,8.91377007,1815.3,1815.0,0.8066]
[1746407547176,5.50903548,1815.2,1815.0,0.8066]
[1746407547821,8.91394594,1815.3,1815.0,0.8066]
[1746407548112,5.50916088,1815.2,1815.0,0.8066]
[1746407548926,8.91395227,1815.3,1815.0,0.8066]
[1746407549615,3.40501789,1815.3,1815.0,6.31620673]
[1746407549909,8.91375992,1815.3,1815.0,0.8066]
[1746407550091,5.91375992,1815.3,1815.0,0.8066]
[1746407551178,0.40501789,1815.3,1815.1,5.50932647]
[1746407551516,5.50877641,1815.3,1815.0,1.43823472]
[1746407551680,8.50862943,1815.4,1815.0,6.947872]
[1746407552720,8.50862943,1815.4,1815.0,0.8066]
[1746407552923,8.50866304,1815.4,1815.0,0.8066]
[1746407553590,14.01736422,1815.4,1815.0,0.8066]
[1746407553786,14.01735943,1815.4,1815.0,0.8066]
[1746407553989,5.50876232,1815.3,1815.0,0.8066]
[1746407554220,3.4164134,1815.4,1815.1,5.50929899]
[1746407554633,0.4164134,1815.4,1815.1,5.50929899]
[1746407554999,8.50812592,1815.5,1815.1,5.50912497]
[1746407555595,3.0,1815.5,1815.2,0.7871]
[1746407555923,7.1491112,1815.6,1815.2,6.29610371]
[1746407556713,5.50801655,1815.6,1815.2,7.47662383]
[1746407557587,5.92521736,1815.6,1815.2,7.47662383]
[1746407558497,5.92521736,1815.6,1815.2,6.29610371]
[1746407559023,7.56631201,1815.6,1815.2,6.29610371]
[1746407560438,7.56631201,1815.6,1815.2,6.35118936]
[1746407560737,7.56631201,1815.6,1815.2,6.29610371]
[1746407561092,3.41720081,1815.6,1815.4,0.7917]
[1746407561291,3.41720081,1815.6,1815.4,6.93010238]
[1746407561292,0.41720081,1815.6,1815.4,6.93010238]
[1746407561607,8.5074527,1815.8,1815.5,5.50812448]
[1746407561608,3.0,1815.8,1815.5,5.50812448]
[1746407561801,5.50705063,1815.9,1815.5,5.50812448]
[1746407562107,8.50678151,1816.0,1815.6,0.7557]
[1746407562307,10.8436941,1816.0,1815.6,0.7557]
[1746407562721,5.50702359,1815.9,1815.6,0.7557]
[1746407563510,11.8623563,1816.1,1815.6,6.318296]
[1746407563712,5.50660967,1816.0,1815.6,6.26351648]
[1746407564934,5.50660967,1816.0,1815.6,6.26335873]
[1746407566436,11.01348403,1816.0,1815.6,6.26335873]
[1746407566610,5.50660967,1816.0,1815.6,6.26335873]
[1746407567338,5.50660967,1816.0,1815.6,0.7557]
[1746407567635,5.50694566,1815.9,1815.6,0.7557]
[1746407568124,5.50691451,1815.9,1815.6,0.7557]
[1746407568337,6.34166782,1816.0,1815.6,0.7557]
[1746407568493,6.34166782,1816.0,1815.6,6.26339537]
[1746407569930,5.50733292,1815.8,1815.6,0.7557]
[1746407570094,6.77288111,1815.8,1815.6,0.7557]
[1746407570298,1.26554819,1815.8,1815.6,0.7557]
[1746407571022,7.10846618,1816.0,1815.6,6.26346415]
[1746407571023,6.34166618,1816.0,1815.6,6.26346415]
[1746407572011,11.84852535,1816.0,1815.6,6.26346415]
[1746407572646,3.0,1816.0,1815.7,5.50749912]
[1746407572935,8.50662347,1816.0,1815.6,6.2633262]
[1746407573643,8.50662347,1816.0,1815.6,20.7633262]
[1746407574243,3.0,1816.0,1815.7,5.50737589]
[1746407574939,3.0,1816.0,1815.6,20.76329857]
[1746407575144,8.50664614,1816.0,1815.6,20.76329857]
[1746407575317,8.50664614,1816.0,1815.7,5.50750897]
[1746407575637,3.0,1816.0,1815.8,0.8258]
[1746407577631,3.0,1816.0,1815.8,6.33298557]
[1746407578008,3.0,1816.0,1815.8,0.8258]
[1746407579343,3.41286342,1816.1,1815.8,7.51691429]
[1746407581525,3.41286342,1816.1,1815.8,22.01691429]
[1746407582046,3.69233613,1816.3,1815.9,6.283055]
[1746407582214,3.69233613,1816.3,1816.1,6.28257216]
[1746407582415,3.69233613,1816.3,1816.1,0.7764]
[1746407582653,9.19789444,1816.4,1816.1,0.7764]
[1746407583153,9.19789444,1816.4,1816.1,2.85468855]
[1746407583154,3.69233613,1816.4,1816.1,2.85468855]
[1746407583452,3.69233613,1816.4,1816.1,8.36080573]
[1746407583613,3.69233613,1816.4,1816.2,5.50598906]
[1746407584680,3.69233613,1816.4,1816.1,8.36081739]
[1746407584878,3.69233613,1816.4,1816.2,0.83608174]
[1746407585476,3.69233613,1816.4,1816.2,6.34197465]
[1746407585873,3.69233613,1816.4,1816.3,6.25919839]
[1746407586173,3.69233613,1816.4,1816.3,20.75919839]
[1746407587335,9.60188828,1816.8,1816.4,5.50520202]
[1746407587534,9.60188828,1816.8,1816.5,0.5505202]
[1746407587946,4.09759265,1816.8,1816.5,0.5505202]
[1746407588147,3.69233613,1816.8,1816.7,5.50448615]
[1746407588348,3.69233613,1816.8,1816.7,6.68388361]
[1746407588578,3.69233613,1816.8,1816.7,21.97188361]
[1746407589442,3.69233613,1816.8,1816.7,24.24131224]
[1746407591504,3.69233613,1816.8,1816.7,25.88240689]
[1746407592012,3.0,1817.2,1816.9,5.50376339]
[1746407592185,3.0,1817.2,1816.9,6.68116505]
[1746407592593,3.0,1817.2,1816.9,1.17740166]
[1746407592770,3.0,1817.2,1816.9,21.18120373]
[1746407593516,3.0,1817.2,1816.9,21.18105671]
[1746407594319,2.49936519,1817.2,1816.9,21.18105671]
[1746407594478,2.49936519,1817.2,1817.0,2.11810567]
[1746407595315,3.69233613,1817.4,1817.1,0.7836]
[1746407595876,3.69233613,1817.4,1817.1,6.28676041]
[1746407596098,3.69233613,1817.4,1817.1,8.55618904]
[1746407596404,3.69233613,1817.4,1817.1,3.05302863]
[1746407596615,3.69233613,1817.4,1817.2,0.30530286]
[1746407596907,5.50226173,1817.5,1817.2,0.30530286]
[1746407597207,5.91672287,1817.5,1817.2,0.30530286]
[1746407598623,6.25812049,1817.6,1817.2,0.30530286]
[1746407598909,5.50163338,1817.7,1817.4,0.779]
[1746407599110,5.50163338,1817.7,1817.4,1.40715592]
[1746407599415,6.28347299,1817.8,1817.4,1.40715592]
[1746407599823,6.28347299,1817.8,1817.4,6.90946259]
[1746407600319,5.92512094,1817.8,1817.4,6.90946259]
[1746407601017,5.92512094,1817.8,1817.5,0.69094626]
[1746407601318,0.42394795,1817.8,1817.5,0.69094626]
[1746407601523,5.50118515,1817.8,1817.4,6.90934838]
[1746407601680,5.50104608,1817.9,1817.4,6.90934838]
[1746407601881,5.50118097,1817.8,1817.4,6.90934838]
[1746407602415,5.50118097,1817.8,1817.4,21.40934838]
[1746407604618,5.91904354,1817.8,1817.4,21.40934838]
[1746407604916,5.91904354,1817.8,1817.5,2.14093484]
[1746407606519,5.50118097,1817.8,1817.5,2.14093484]
[1746407609123,5.91107628,1817.8,1817.5,2.14093484]
[1746407609296,5.91107628,1817.8,1817.3,12.46996384]
[1746407609297,5.50206327,1817.5,1817.3,2.26942863]
[1746407609495,6.25776327,1817.5,1817.3,2.26942863]